bitfinex-derivatives/quotes_ETHF0:USTF0_20241231
["timestamp","ask_amount","ask_price","bid_price","bid_amount"]
[1735681764563,0.78501,3352.8,3352.6,1.78292]
[1735681764764,0.29881,3352.7,3352.6,1.4841]
[1735681764967,0.29881,3352.7,3352.6,0.9715]
[1735681766675,0.74704,3352.7,3352.1,3.7204]
[1735681766970,0.29885,3352.3,3352.1,3.7204]
[1735681767569,0.29885,3352.4,3352.2,0.29886]
[1735681767870,0.29885,3352.3,3352.2,0.29886]
[1735681768466,1.81422348,3352.3,3351.7,3.2078]
[1735681768668,0.29886,3352.2,3352.1,0.5017]
[1735681769565,0.29889,3351.8,3351.7,4.1739]
[1735681769770,0.29889,3351.9,3351.8,0.80059]
[1735681770967,0.29889,3351.9,3351.8,0.5017]
[1735681771372,0.29895,3351.2,3351.1,7.90747353]
[1735681771575,0.29895,3351.2,3351.1,9.38577353]
[1735681772073,0.29895,3351.2,3351.1,4.6861]
[1735681772974,0.29895,3351.2,3351.1,0.9735]
[1735681773280,0.29895,3351.2,3351.1,0.4823]
[1735681774272,0.29897,3350.9,3350.8,0.9898]
[1735681775079,0.29897,3350.9,3350.8,0.4912]
[1735681775789,1.81422348,3351.1,3350.6,3.2078]
[1735681776080,0.29899,3350.7,3350.6,3.2078]
[1735681777375,0.74743,3351.0,3350.5,0.5054]
[1735681777574,0.299,3350.6,3350.5,0.5054]
[1735681781776,0.29899,3350.8,3350.5,0.5054]
[1735681781976,0.29899,3350.8,3350.6,0.299]
[1735681782180,0.299,3350.7,3350.5,0.80441]
[1735681785680,1.81422348,3351.1,3350.5,0.5054]
[1735681785878,0.299,3350.7,3350.5,0.80441]
[1735681786590,1.81422348,3350.8,3350.5,0.5054]
[1735681786884,0.299,3350.6,3350.5,0.5054]
[1735681788381,2.79732348,3350.8,3350.3,0.4881]
[1735681788574,0.29902,3350.4,3350.3,0.4881]
[1735681791085,0.29902,3350.4,3350.3,0.78713]
[1735681791284,0.29902,3350.5,3350.3,0.78713]
[1735681791882,2.32092348,3350.8,3350.3,0.78713]
[1735681792089,0.29902,3350.4,3350.3,0.4881]
[1735681793084,0.29902,3350.4,3350.3,0.78713]
[1735681794188,0.29902,3350.4,3350.3,0.4881]
[1735681810397,0.29902,3350.4,3350.3,0.78713]
[1735681811496,0.29902,3350.4,3350.3,0.4881]
[1735681813490,1.81422348,3350.4,3350.2,3.2078]
[1735681813694,0.29905,3350.1,3350.0,0.9703]
[1735681813898,2.11327348,3350.1,3350.0,0.9703]
[1735681814803,0.29905,3350.0,3349.9,4.69967353]
[1735681815100,0.52005,3350.0,3349.9,4.69967353]
[1735681815403,0.29909,3349.6,3349.5,4.69967353]
[1735681815604,2.11331348,3349.6,3349.5,4.69967353]
[1735681816801,1.81422348,3349.6,3349.1,1.4621]
[1735681817103,0.29913,3349.2,3349.1,1.76124]
[1735681817500,0.29913,3349.2,3349.1,1.4621]
[1735681818206,1.81422348,3349.6,3349.1,1.76123]
[1735681818207,0.29912,3349.3,3349.1,1.76123]
[1735681818604,3.51274657,3349.8,3349.1,1.4621]
[1735681818815,0.2991,3349.6,3349.4,0.2991]
[1735681819512,6.07466005,3349.9,3349.1,6.16177353]
[1735681819806,0.29913,3349.2,3349.1,6.16177353]
[1735681820504,0.29913,3349.2,3349.1,1.4621]
[1735681821513,0.29914,3349.0,3348.9,4.69579954]
[1735681822821,0.29916,3348.8,3348.7,0.9376]
[1735681824216,0.29916,3348.8,3348.7,1.4377]
[1735681828721,0.29916,3348.8,3348.7,1.73687]
[1735681830329,0.74782,3349.2,3348.7,1.73687]
[1735681830729,0.29916,3348.8,3348.7,1.73687]
[1735681831327,0.29916,3348.8,3348.7,1.4377]
[1735681832018,0.29916,3348.8,3348.7,1.73687]
[1735681832224,0.29916,3348.8,3348.7,1.4377]
[1735681833725,0.29916,3348.8,3348.7,1.73687]
[1735681839935,0.29916,3348.8,3348.7,1.4377]
[1735681840337,0.29916,3348.8,3348.7,0.5001]
[1735681840529,0.29919,3348.5,3348.4,4.69579954]
[1735681840736,2.11341348,3348.5,3348.4,4.69579954]
[1735681841044,0.2992,3348.4,3348.3,4.69579954]
[1735681841230,0.792,3348.4,3348.3,4.69579954]
[1735681842336,0.29922,3348.1,3348.0,0.4707]
[1735681842527,0.4928,3348.4,3348.0,0.4707]
[1735681842733,1.81422348,3348.5,3348.4,0.2992]
[1735681843535,1.81422348,3348.5,3348.4,3.507]
[1735681844769,0.29918,3348.7,3348.5,0.29918]
[1735681845040,0.29918,3348.7,3348.6,1.3939]
[1735681847335,0.29918,3348.7,3348.6,0.4591]
[1735681847732,0.29919,3348.5,3348.4,3.2078]
[1735681847942,2.11341348,3348.5,3348.4,3.2078]
[1735681848837,1.81422348,3348.8,3348.4,3.2078]
[1735681849040,0.29918,3348.6,3348.5,0.79089]
[1735681849342,0.29918,3348.7,3348.5,0.9947]
[1735681849542,0.29918,3348.7,3348.6,0.5022]
[1735681854247,0.29918,3348.7,3348.6,0.80138]
[1735681854837,0.29917,3348.8,3348.6,0.80138]
[1735681855447,1.81422348,3349.1,3348.6,0.5022]
[1735681855644,0.29915,3349.0,3348.9,0.29915]
[1735681856049,0.483,3349.2,3348.9,0.29915]
[1735681856242,1.81422348,3349.4,3349.0,0.4754]
[1735681856543,1.81422348,3349.4,3349.1,0.79743]
[1735681856544,0.29912,3349.3,3349.1,0.79743]
[1735681856737,0.29913,3349.2,3349.1,0.79743]
[1735681858050,0.29913,3349.2,3349.1,0.4983]
[1735681861051,0.29913,3349.2,3349.1,5.19409954]
[1735681861947,0.29913,3349.2,3349.1,4.69579954]
[1735681862250,0.76083,3349.2,3349.1,4.69579954]
[1735681863653,0.4617,3349.2,3349.0,4.69579954]
[1735681863849,0.76083,3349.2,3349.1,0.4823]
[1735681866157,0.76083,3349.2,3349.1,5.17809954]
[1735681869954,0.76083,3349.2,3349.1,0.4823]
[1735681873155,0.29912,3349.4,3349.1,0.4823]
[1735681873355,3.51274657,3349.5,3349.4,0.29911]
[1735681874655,0.29909,3349.6,3349.4,5.80614766]
[1735681874856,0.29909,3349.6,3349.5,0.2991]
[1735681875045,0.29909,3349.7,3349.6,0.29908]
[1735681875249,0.29909,3349.7,3349.6,3.96428]
[1735681875451,1.81422348,3349.9,3349.6,3.6652]
[1735681875651,0.29908,3349.8,3349.7,0.29908]
[1735681876058,1.81422348,3349.9,3349.6,8.36325823]
[1735681876353,2.11329348,3349.9,3349.8,0.29907]
[1735681876553,0.29908,3349.7,3349.6,8.36325823]
[1735681877058,0.29908,3349.7,3349.6,8.66234823]
[1735681878053,1.81422348,3349.9,3349.6,8.66234823]
[1735681878250,1.81422348,3349.9,3349.6,3.96429]
[1735681878251,0.29908,3349.8,3349.6,3.96429]
[1735681878449,0.29908,3349.8,3349.7,0.29908]
[1735681880451,1.81422348,3349.9,3349.6,3.6652]
[1735681880651,0.29908,3349.7,3349.6,3.6652]
[1735681881253,0.29908,3349.7,3349.6,3.96429]
[1735681881961,2.11329348,3349.9,3349.8,0.29907]
[1735681884258,0.74759,3350.3,3350.1,0.29904]
[1735681884259,0.29904,3350.3,3350.1,0.29904]
[1735681884459,0.29904,3350.3,3350.2,1.28024]
[1735681886363,0.29904,3350.3,3350.2,0.9812]
[1735681888662,0.29905,3350.0,3349.9,3.2078]
[1735681888863,0.29905,3350.0,3349.9,4.1594]
[1735681890766,0.29905,3350.0,3349.9,4.45846]
[1735681893369,0.74759,3350.3,3349.9,4.45846]
[1735681893572,0.29905,3350.0,3349.9,4.45846]
[1735681894171,5.02202348,3350.7,3349.9,4.1594]
[1735681894373,0.29902,3350.5,3350.4,0.29901]
[1735681894578,0.29902,3350.5,3350.4,0.79071]
[1735681894767,0.29902,3350.5,3350.4,1.25931]
[1735681898078,0.29902,3350.5,3350.4,0.9603]
[1735681899366,0.29902,3350.5,3350.4,1.25932]
[1735681901073,0.29902,3350.5,3350.4,0.9603]
[1735681902974,0.29902,3350.5,3350.4,1.25932]
[1735681907181,0.299,3350.7,3350.6,0.299]
[1735681907371,0.29899,3350.8,3350.7,0.29898]
[1735681907572,3.51274657,3351.2,3351.1,0.29896]
[1735681907873,3.51274657,3351.2,3351.1,3.50676]
[1735681908279,3.81169657,3351.2,3351.1,3.50676]
[1735681908882,0.29895,3351.2,3351.1,3.50676]
[1735681911381,0.29895,3351.3,3351.2,0.29894]
[1735681911981,0.29895,3351.3,3351.1,3.2078]
[1735681911982,0.29893,3351.5,3351.4,0.29893]
[1735681912176,2.30382348,3351.6,3351.1,3.2078]
[1735681912381,0.29894,3351.4,3351.3,0.29893]
[1735681912979,0.29894,3351.3,3351.2,0.29894]
[1735681913186,2.30382348,3351.6,3351.1,3.2078]
[1735681913487,0.29894,3351.3,3351.2,0.29894]
[1735681913778,0.29893,3351.4,3351.3,0.29894]
[1735681915184,2.30382348,3351.6,3351.1,3.2078]
[1735681915490,2.60274348,3351.6,3351.5,0.29892]
[1735681916582,0.29892,3351.5,3351.4,0.29892]
[1735681917285,0.29894,3351.3,3351.2,0.29894]
[1735681917583,0.29894,3351.4,3351.3,0.29894]
[1735681918687,2.30382348,3351.6,3351.1,3.2078]
[1735681918887,0.29894,3351.3,3351.2,0.29894]
[1735681919282,2.30382348,3351.6,3351.1,3.2078]
[1735681919587,0.29894,3351.4,3351.3,0.29894]
[1735681920982,0.29893,3351.5,3351.4,0.29893]
[1735681921988,0.29893,3351.4,3351.3,0.29893]
[1735681927987,0.29893,3351.4,3351.3,0.76083]
[1735681928189,1.15593663,3351.4,3351.3,0.76083]
[1735681928396,0.85700663,3351.8,3351.3,0.4619]
[1735681928695,4.25994657,3352.0,3351.9,0.29889]
[1735681928696,3.51274657,3352.0,3351.9,0.29889]
[1735681928992,3.51274657,3352.0,3351.9,4.36369663]
[1735681929895,1.15585663,3352.3,3352.2,0.29886]
[1735681930195,1.80921626,3352.7,3352.0,0.4682]
[1735681930388,0.29884,3352.5,3352.4,0.29883]
[1735681930588,0.29884,3352.5,3352.4,0.74983]
[1735681931188,0.29884,3352.5,3352.4,0.451]
[1735681934494,0.29882,3352.7,3352.6,0.29882]
[1735681934800,1.80921626,3352.9,3352.4,0.451]
[1735681934995,0.29881,3352.8,3352.7,0.29881]
[1735681935394,0.29882,3352.7,3352.5,0.29883]
[1735681935594,0.29882,3352.7,3352.4,0.451]
[1735681935595,0.29882,3352.7,3352.6,0.4497]
[1735681939201,0.29883,3352.5,3352.4,0.451]
[1735681939403,0.29883,3352.5,3352.4,0.8973]
[1735681943691,1.80921626,3352.7,3352.3,3.2078]
[1735681943897,0.29888,3352.0,3351.9,0.4518]
[1735681944204,2.10809626,3352.0,3351.9,0.4518]
[1735681948004,2.10809626,3352.0,3351.9,0.9221]
[1735681949303,0.29888,3352.0,3351.9,0.9221]
[1735681949504,0.29888,3352.1,3352.0,0.29887]
[1735681949707,0.29888,3352.1,3352.0,0.79297]
[1735681951408,0.29888,3352.1,3352.0,0.4941]
[1735681952607,0.29888,3352.1,3352.0,0.79298]
[1735681954115,0.29888,3352.1,3352.0,0.4941]
[1735681955619,0.29888,3352.1,3352.0,0.79298]
[1735681959410,1.80921626,3352.3,3352.0,0.4941]
[1735681959609,0.29886,3352.2,3352.1,0.29886]
[1735681960918,0.29887,3352.1,3352.0,5.49102823]
[1735681961117,0.29887,3352.1,3352.0,5.19215823]
[1735681961323,0.29887,3352.1,3352.0,5.49103823]
[1735681962008,0.29887,3352.1,3352.0,0.79298]
[1735681962213,0.29887,3352.1,3352.0,4.00078]
[1735681963720,0.29887,3352.1,3352.0,0.4941]
[1735681968420,0.4704,3352.2,3351.9,0.4518]
[1735681968623,0.4704,3352.2,3351.7,4.69805823]
[1735681968624,0.29889,3351.8,3351.7,4.69805823]
[1735681969019,5.29889,3351.8,3351.7,4.69805823]
[1735681969618,0.29889,3351.8,3351.7,4.69805823]
[1735681970225,4.68157467,3351.9,3351.6,3.2078]
[1735681970530,2.59431626,3351.7,3351.6,3.2078]
[1735681975630,0.29895,3351.2,3351.1,4.69805823]
[1735681976824,0.29895,3351.2,3351.0,5.46961823]
[1735681977028,0.29896,3351.1,3351.0,5.46961823]
[1735681977820,0.29896,3351.1,3351.0,6.49362074]
[1735681978632,0.29896,3351.1,3351.0,6.19466074]
[1735681978829,0.29896,3351.1,3351.0,6.49363074]
[1735681979424,0.29896,3351.1,3351.0,0.77157]
[1735681979834,0.29896,3351.1,3351.0,0.4726]
[1735681980426,0.29896,3351.1,3351.0,5.16331661]
[1735681981639,0.29896,3351.1,3351.0,5.46228661]
[1735681982731,0.29896,3351.1,3351.0,13.53971014]
[1735681983129,1.80921626,3351.4,3351.0,13.24074014]
[1735681983326,0.29895,3351.2,3351.1,0.29894]
[1735681984126,0.29895,3351.2,3351.1,10.70986972]
[1735681986029,0.29895,3351.2,3351.1,10.41092972]
[1735681986432,0.29895,3351.2,3351.1,4.68987693]
[1735681986630,0.29895,3351.2,3351.1,4.98883693]
[1735681987636,0.29895,3351.2,3351.1,0.29896]
[1735681991441,0.29896,3351.1,3351.0,0.77156]
[1735681992038,0.29896,3351.1,3351.0,0.4726]
[1735681992039,2.10817626,3351.1,3351.0,0.4726]
[1735681992244,2.01368648,3351.1,3351.0,0.4726]
[1735681993653,1.15632324,3351.1,3351.0,0.4726]
[1735681994257,2.11009507,3351.1,3351.0,0.4726]
[1735682005165,0.29896,3351.1,3351.0,0.77157]
[1735682007871,0.29896,3351.1,3351.0,0.4726]
[1735682010578,2.11009507,3351.1,3351.0,0.4726]
[1735682012881,2.11009507,3351.1,3351.0,5.16247693]
[1735682014577,2.11009507,3351.1,3351.0,13.25452624]
[1735682016477,1.15615225,3351.1,3351.0,13.25452624]
[1735682022079,1.15615225,3351.1,3351.0,6.20743889]
[1735682028887,1.15615225,3351.1,3351.0,5.73483889]
[1735682029084,2.0133445,3351.1,3351.0,5.73483889]
[1735682030593,5.53435735,3351.1,3351.0,4.70558769]
[1735682031894,6.69491917,3351.1,3350.8,4.70558769]
[1735682032096,1.15616225,3350.9,3350.8,4.70558769]
[1735682033095,1.15616225,3350.9,3350.6,5.12868769]
[1735682033096,5.53876692,3350.9,3350.6,5.12868769]
[1735682033301,0.29899,3350.7,3350.6,5.12868769]
[1735682034093,1.15618225,3350.7,3350.6,5.12868769]
[1735682034293,1.15618225,3350.7,3350.6,10.85911956]
[1735682034598,1.15618225,3350.7,3350.6,6.15353187]
[1735682036598,1.15618225,3350.7,3350.6,10.85807541]
[1735682038999,1.15618225,3350.7,3350.6,6.15353187]
[1735682039799,1.15618225,3350.7,3350.6,0.4231]
[1735682040899,1.15618225,3350.7,3350.6,5.12610211]
[1735682047599,0.29899,3350.7,3350.6,5.12610211]
[1735682047795,1.15618225,3350.7,3350.6,5.12610211]
[1735682049005,1.15618225,3350.7,3350.4,4.70300211]
[1735682049006,0.85719225,3350.7,3350.4,4.70300211]
[1735682049306,5.2211945,3350.5,3350.4,4.70300211]
[1735682049614,5.56700225,3350.5,3350.4,4.70300211]
[1735682050016,6.02160225,3350.5,3350.4,4.70300211]
[1735682050213,5.72259225,3350.5,3350.0,0.4561]
[1735682050516,1.15624225,3350.1,3350.0,0.4561]
[1735682056217,0.29905,3350.1,3350.0,0.75515]
[1735682056416,1.15624225,3350.1,3350.0,0.4561]
[1735682057118,1.15624225,3350.1,3350.0,3.96295]
[1735682057913,1.15624225,3350.1,3350.0,3.6639]
[1735682059415,1.15624225,3350.1,3350.0,3.96295]
[1735682059615,0.29905,3350.1,3350.0,3.96295]
[1735682060220,1.15624225,3350.1,3350.0,3.6639]
[1735682063322,1.15624225,3350.1,3350.0,0.4561]
[1735682063820,0.29905,3350.0,3349.9,4.70300211]
[1735682064124,1.60074225,3350.0,3349.9,4.70300211]
[1735682064327,1.40679225,3350.0,3349.6,7.91080211]
[1735682064627,1.15627225,3349.7,3349.6,7.91080211]
[1735682064821,1.15627225,3349.7,3349.6,4.70300211]
[1735682065927,0.29909,3349.6,3349.5,0.8925]
[1735682066117,0.73449,3349.6,3349.5,0.8925]
[1735682066318,0.29909,3349.6,3349.5,0.8925]
[1735682066915,0.74769,3349.9,3349.5,0.8925]
[1735682066916,0.85719225,3349.9,3349.5,0.8925]
[1735682067116,0.85719225,3349.9,3349.7,3.50688]
[1735682067319,1.15625225,3349.9,3349.8,0.4307]
[1735682080833,0.29909,3349.6,3349.5,5.15430211]
[1735682081031,1.15628225,3349.6,3349.5,4.70300211]
[1735682081928,1.15628225,3349.6,3349.4,7.05838153]
[1735682082134,0.29911,3349.4,3349.3,3.6322]
[1735682082332,1.15630225,3349.4,3349.3,3.6322]
[1735682085130,0.2991,3349.6,3349.5,0.2991]
[1735682086736,0.2991,3349.6,3349.5,5.00210211]
[1735682087738,0.2991,3349.6,3349.5,4.70300211]
[1735682089030,0.2991,3349.6,3349.5,5.00210211]
[1735682090339,0.2991,3349.6,3349.5,6.01742453]
[1735682090634,0.85719225,3349.7,3349.5,5.71832453]
[1735682090835,0.85719225,3350.1,3349.8,0.29907]
[1735682091036,0.29905,3350.0,3349.9,0.4258]
[1735682091235,3.52482591,3350.2,3350.1,0.29905]
[1735682091441,3.52482591,3350.2,3350.1,4.36404225]
[1735682091638,2.82452591,3350.2,3350.1,4.36404225]
[1735682092643,0.29904,3350.3,3350.2,0.29903]
[1735682093636,0.29904,3350.3,3350.2,13.07361406]
[1735682095243,0.74752,3350.6,3350.2,13.07361406]
[1735682095837,0.29904,3350.3,3350.2,13.07361406]
[1735682098539,0.29904,3350.3,3350.2,12.77458406]
[1735682100338,0.29904,3350.3,3350.2,4.69049382]
[1735682100539,0.29902,3350.6,3350.5,0.299]
[1735682100745,0.29902,3350.5,3350.4,0.29901]
[1735682100949,0.29902,3350.5,3350.4,0.75251]
[1735682101344,0.29902,3350.5,3350.4,0.4535]
[1735682101547,0.29902,3350.5,3350.4,10.86945141]
[1735682102948,0.29902,3350.5,3350.4,5.14399382]
[1735682103149,0.29902,3350.5,3350.4,0.4535]
[1735682105347,0.29902,3350.5,3350.2,4.69049382]
[1735682105552,0.29903,3350.3,3350.2,4.69049382]
[1735682107153,0.29904,3350.2,3350.1,9.07874382]
[1735682107546,0.29904,3350.2,3350.1,8.77969382]
[1735682107752,0.29904,3350.2,3350.1,9.07874382]
[1735682107956,0.29904,3350.2,3350.1,8.77969382]
[1735682108158,0.29904,3350.2,3350.1,8.35529382]
[1735682110152,0.29904,3350.2,3350.1,3.6648]
[1735682110556,0.29904,3350.2,3350.1,3.96385]
[1735682111155,0.29904,3350.2,3350.1,8.65434382]
[1735682111351,0.4554,3350.4,3350.1,8.35529382]
[1735682111558,0.299,3350.7,3350.6,0.29899]
[1735682111858,0.29897,3350.9,3350.8,0.29898]
[1735682112058,0.29899,3350.8,3350.7,0.29899]
[1735682113058,3.2078,3351.0,3350.4,0.4228]
[1735682113364,0.29899,3350.7,3350.6,0.299]
[1735682114149,0.29899,3350.7,3350.6,0.7606]
[1735682116046,3.2078,3351.0,3350.6,0.4616]
[1735682116257,0.29899,3350.8,3350.7,0.29899]
[1735682116556,0.29899,3350.7,3350.6,0.7606]
[1735682116752,0.29899,3350.8,3350.6,0.7606]
[1735682116959,0.29899,3350.7,3350.6,0.7606]
[1735682117153,0.29899,3350.7,3350.6,0.4616]
[1735682117761,0.76139,3350.7,3350.6,0.4616]
[1735682118059,0.29901,3350.5,3350.4,4.69049382]
[1735682118761,0.29902,3350.4,3350.3,0.4411]
[1735682119160,0.29902,3350.4,3350.3,0.74013]
[1735682119358,0.29902,3350.4,3350.3,0.4411]
[1735682120361,0.4308,3350.6,3350.3,0.4411]
[1735682120654,0.72981,3350.6,3350.5,0.29901]
[1735682122965,0.29901,3350.5,3350.4,0.29901]
[1735682123265,0.72981,3350.6,3350.5,0.29901]
[1735682124558,0.29901,3350.6,3350.5,0.29901]
[1735682124760,0.29901,3350.6,3350.5,0.74981]
[1735682127368,0.29901,3350.6,3350.5,3.95761]
[1735682127667,0.4609,3350.9,3350.5,3.6586]
[1735682127864,0.29898,3350.8,3350.6,0.29899]
[1735682128071,0.4609,3350.9,3350.6,0.4417]
[1735682128271,0.29899,3350.8,3350.7,0.29899]
[1735682128980,0.4609,3350.9,3350.6,0.4417]
[1735682129180,0.29899,3350.7,3350.6,0.74069]
[1735682131380,0.29899,3350.7,3350.6,5.43118382]
[1735682132982,0.29899,3350.7,3350.6,5.13219382]
[1735682133873,0.29899,3350.7,3350.6,0.4417]
[1735682134286,1.15635545,3350.7,3350.6,0.4417]
[1735682134779,0.85736545,3350.7,3350.5,4.69049382]
[1735682134985,1.1929,3350.6,3350.5,4.69049382]
[1735682135185,0.299,3350.6,3350.5,4.69049382]
[1735682135581,0.299,3350.6,3350.5,5.12859382]
[1735682135788,0.299,3350.7,3350.6,0.299]
[1735682136786,0.299,3350.6,3350.5,10.98527745]
[1735682137981,0.299,3350.6,3350.5,9.63117183]
[1735682138377,0.299,3350.6,3350.5,9.33216183]
[1735682141784,0.299,3350.6,3350.5,6.12436183]
[1735682141988,0.299,3350.6,3350.5,9.33216183]
[1735682148291,0.299,3350.6,3350.5,9.79746183]
[1735682148693,0.299,3350.6,3350.5,9.35936183]
[1735682149488,0.299,3350.6,3350.5,8.89406183]
[1735682149891,0.299,3350.6,3350.5,15.9171237]
[1735682150980,0.299,3350.6,3350.5,12.7093237]
[1735682157396,0.299,3350.6,3350.5,5.68626183]
[1735682158194,1.15646324,3350.6,3350.5,5.68626183]
[1735682159794,3.52938607,3350.7,3350.6,0.299]
[1735682159997,3.82837607,3350.7,3350.6,0.299]
[1735682160399,4.68583931,3350.7,3350.6,0.299]
[1735682161396,1.15645324,3350.7,3350.6,15.34938441]
[1735682163199,1.15645324,3350.7,3350.6,5.98526183]
[1735682165606,1.15645324,3350.7,3350.6,26.74115351]
[1735682165798,3.52938607,3350.9,3350.8,0.29898]
[1735682166006,4.69976788,3351.1,3350.8,0.85746324]
[1735682166304,4.69976788,3351.1,3351.0,4.36423324]
[1735682167204,0.29893,3351.5,3351.4,0.29893]
[1735682167408,0.29893,3351.5,3351.4,3.50673]
[1735682168502,0.29893,3351.5,3351.4,9.19299183]
[1735682168706,1.15639324,3351.5,3351.4,8.89406183]
[1735682168906,1.15639324,3351.5,3351.4,5.68626183]
[1735682169902,0.29893,3351.4,3351.3,4.67627042]
[1735682170108,0.74523,3351.4,3351.3,4.67627042]
[1735682170404,3.01268968,3351.4,3351.3,4.67627042]
[1735682171107,0.29897,3351.0,3350.9,5.42314042]
[1735682171308,0.29896,3351.1,3350.9,5.42314042]
[1735682171510,0.4615,3351.3,3351.2,0.29895]
[1735682172010,5.13476788,3351.6,3351.5,0.29892]
[1735682172309,0.435,3351.6,3351.5,3.50672]
[1735682172709,5.12706788,3351.7,3351.6,0.29891]
[1735682173007,5.12706788,3351.7,3351.6,0.74901]
[1735682173207,5.12706788,3351.7,3351.6,1.18951]
[1735682173909,0.4273,3351.7,3351.6,1.18951]
[1735682175105,0.7262,3351.7,3351.6,1.18951]
[1735682177106,0.7262,3351.7,3351.6,0.8906]
[1735682179009,2.53705968,3351.7,3351.6,0.4501]
[1735682182221,0.7262,3351.7,3351.6,0.74901]
[1735682183110,0.4273,3351.7,3351.6,0.74901]
[1735682183512,0.7262,3351.7,3351.6,0.74901]
[1735682186814,0.7262,3351.7,3351.6,0.4501]
[1735682187417,0.7262,3351.7,3351.6,0.74901]
[1735682192328,1.58304648,3351.7,3351.6,0.74901]
[1735682199336,1.58304648,3351.7,3351.6,1.18701]
[1735682208537,4.68991382,3352.3,3351.6,1.74494648]
[1735682208742,0.72916,3352.2,3352.1,0.29886]
[1735682208941,0.4303,3352.2,3351.7,1.18857]
[1735682209150,0.29887,3352.1,3352.0,0.29887]
[1735682210036,0.4303,3352.2,3351.9,4.66327156]
[1735682210247,1.15572648,3352.0,3351.9,4.96215156]
[1735682211844,0.85684648,3352.0,3351.9,4.96215156]
[1735682212035,0.85684648,3352.0,3351.9,6.02930779]
[1735682212238,1.15572648,3352.0,3351.9,6.02930779]
[1735682212632,0.29888,3352.0,3351.9,6.02930779]
[1735682212837,0.29887,3352.1,3352.0,0.29887]
[1735682213237,0.29887,3352.1,3352.0,0.72237]
[1735682213643,0.4301,3352.3,3352.0,3.6313]
[1735682213846,0.29887,3352.2,3352.1,0.73046]
[1735682214740,3.2078,3352.4,3352.1,1.28844648]
[1735682214949,0.29883,3352.6,3352.5,0.29882]
[1735682215151,0.29883,3352.6,3352.5,3.50662]
[1735682216243,0.29883,3352.6,3352.5,9.23704779]
[1735682216646,0.29883,3352.6,3352.5,8.93822779]
[1735682217436,0.29883,3352.6,3352.5,3.2078]
[1735682218551,0.29883,3352.6,3352.5,3.50663]
[1735682218950,0.29883,3352.6,3352.5,3.2078]
[1735682220453,0.29883,3352.6,3352.5,3.50663]
[1735682220950,0.29883,3352.6,3352.5,3.2078]
[1735682221146,0.29883,3352.6,3352.5,3.50663]
[1735682221543,0.8869,3352.8,3352.5,4.06464648]
[1735682221743,0.29879,3353.1,3353.0,0.29878]
[1735682221945,0.75409,3353.1,3353.0,1.15562648]
[1735682222244,4.68991382,3353.2,3353.0,0.85684648]
[1735682222446,4.68991382,3353.2,3353.1,0.72098]
[1735682222950,4.68991382,3353.5,3353.4,0.29875]
[1735682223143,4.68991382,3353.5,3353.4,4.36339648]
[1735682224656,4.68991382,3353.5,3353.4,8.50655]
[1735682224657,1.89031382,3353.5,3353.4,8.50655]
[1735682224847,0.29871,3353.9,3353.8,0.29871]
[1735682225043,1.28864648,3354.2,3353.8,4.06464648]
[1735682225255,0.2987,3354.0,3353.9,0.2987]
[1735682225658,0.4318,3354.2,3353.8,4.06464648]
[1735682225851,0.29869,3354.1,3354.0,1.15553648]
[1735682226257,0.29869,3354.1,3354.0,0.29869]
[1735682226748,0.29871,3353.9,3353.8,3.50651]
[1735682226944,0.29871,3353.9,3353.8,3.2078]
[1735682227145,0.29871,3353.9,3353.8,3.50652]
[1735682227348,0.29869,3354.1,3354.0,0.29869]
[1735682228563,0.29869,3354.1,3353.8,3.2078]
[1735682228564,0.4318,3354.2,3353.8,3.2078]
[1735682229157,0.29871,3354.0,3353.9,0.2987]
[1735682230457,0.73048,3354.2,3354.1,0.29869]
[1735682230955,0.2987,3354.0,3353.9,0.2987]
[1735682231160,0.29871,3353.9,3353.8,3.50651]
[1735682232459,0.29871,3353.9,3353.8,3.2078]
[1735682232661,0.29871,3353.9,3353.8,3.50652]
[1735682233054,0.29871,3353.9,3353.8,3.2078]
[1735682233261,0.29871,3353.9,3353.8,3.50652]
[1735682234154,0.29871,3353.9,3353.8,3.2078]
[1735682234354,0.29871,3353.9,3353.8,3.50652]
[1735682235058,0.29871,3353.9,3353.8,3.2078]
[1735682235355,0.29871,3353.9,3353.2,0.29876]
[1735682235356,0.29877,3353.3,3353.2,0.29876]
[1735682235861,0.29879,3353.1,3353.0,0.29878]
[1735682236060,0.2988,3353.0,3352.9,0.29879]
[1735682236253,0.29881,3352.8,3352.7,0.2988]
[1735682237354,0.29882,3352.7,3352.6,0.29882]
[1735682237552,0.29882,3352.6,3352.5,3.50663]
[1735682237761,0.4307,3352.9,3352.6,0.29881]
[1735682237762,0.29882,3352.7,3352.6,0.29881]
[1735682239063,0.4307,3352.9,3352.5,3.2078]
[1735682239559,0.29882,3352.8,3352.7,0.29881]
[1735682240162,0.7295,3352.9,3352.8,0.29881]
[1735682240458,0.4307,3352.9,3352.5,3.2078]
[1735682240860,0.7295,3352.9,3352.8,0.29881]
[1735682241563,0.4307,3352.9,3352.8,0.29881]
[1735682242166,0.7295,3352.9,3352.8,0.29881]
[1735682242560,0.29882,3352.8,3352.7,0.29881]
[1735682243460,0.4307,3352.9,3352.5,3.2078]
[1735682243665,0.29882,3352.6,3352.5,3.50663]
[1735682244766,0.29882,3352.7,3352.6,0.29881]
[1735682249569,0.4307,3352.9,3352.5,3.2078]
[1735682249874,0.29881,3352.8,3352.7,0.29881]
[1735682250371,0.29878,3353.1,3353.0,0.29878]
[1735682251175,0.4487,3353.2,3352.9,3.2078]
[1735682251176,0.29879,3353.0,3352.9,3.2078]
[1735682262678,0.29879,3353.0,3352.9,3.5066]
[1735682263879,0.29882,3352.8,3352.7,0.29881]
[1735682264074,0.29878,3353.1,3352.5,3.628]
[1735682264276,0.2988,3352.9,3352.8,0.2988]
[1735682264681,0.29879,3353.0,3352.9,0.29878]